[Event "*** SCC Grand Prix: Titled Tuesday Blitz"]
[Site "Chess.com"]
[Date "2020.07.14"]
[Round "4"]
[White "pedro_gines"]
[Black "DinaBelenkaya"]
[Result "0-1"]
[WhiteElo "2419"]
[BlackElo "2282"]
[TimeControl "180+1"]
[EndTime "10:38:55 PDT"]
[Termination "DinaBelenkaya won on time"]

1. d4 {[%clk 0:02:58.9]} 1... Nf6 {[%clk 0:02:56.9]} 2. c4 {[%clk 0:02:54.8]}
2... e6 {[%clk 0:02:53.7]} 3. Nf3 {[%clk 0:02:49.9]} 3... Bb4+ {[%clk
0:02:50.4]} 4. Nbd2 {[%clk 0:02:45.2]} 4... b6 {[%clk 0:02:47.8]} 5. e3 {[%clk
0:02:36.7]} 5... Bb7 {[%clk 0:02:45.8]} 6. a3 {[%clk 0:02:37.2]} 6... Bxd2+
{[%clk 0:02:45.3]} 7. Qxd2 {[%clk 0:02:37.6]} 7... d6 {[%clk 0:02:42.1]} 8. Be2
{[%clk 0:02:37.5]} 8... Nbd7 {[%clk 0:02:41.2]} 9. O-O {[%clk 0:02:35.4]} 9...
Ne4 {[%clk 0:02:41.1]} 10. Qd3 {[%clk 0:02:34.6]} 10... O-O {[%clk 0:02:42]} 11.
b4 {[%clk 0:02:34.2]} 11... f5 {[%clk 0:02:41.5]} 12. Bb2 {[%clk 0:02:34.3]}
12... g5 {[%clk 0:02:37.4]} 13. Nd2 {[%clk 0:02:25.8]} 13... Qe8 {[%clk
0:02:32]} 14. c5 {[%clk 0:01:33]} 14... Ndf6 {[%clk 0:02:25.4]} 15. f3 {[%clk
0:01:29.1]} 15... Nxd2 {[%clk 0:02:24.1]} 16. Qxd2 {[%clk 0:01:30]} 16... g4
{[%clk 0:02:13.7]} 17. Rac1 {[%clk 0:00:46.8]} 17... h5 {[%clk 0:01:37.5]} 18.
cxd6 {[%clk 0:00:41.6]} 18... cxd6 {[%clk 0:01:35.6]} 19. Rc7 {[%clk 0:00:42.2]}
19... Rf7 {[%clk 0:01:35.3]} 20. Rfc1 {[%clk 0:00:40.8]} 20... gxf3 {[%clk
0:01:17.8]} 21. gxf3 {[%clk 0:00:33]} 21... Kh7 {[%clk 0:01:17.5]} 22. Kh1
{[%clk 0:00:27.5]} 22... Bd5 {[%clk 0:01:08.4]} 23. a4 {[%clk 0:00:09.9]} 23...
Qg8 {[%clk 0:01:00.8]} 24. Rxf7+ {[%clk 0:00:08.3]} 24... Qxf7 {[%clk
0:01:01.7]} 25. b5 {[%clk 0:00:08.2]} 25... Rg8 {[%clk 0:00:59.2]} 26. Rg1
{[%clk 0:00:08.6]} 26... Ng4 {[%clk 0:00:59]} 27. Qe1 {[%clk 0:00:04.8]} 27...
Nxe3 {[%clk 0:00:57.5]} 28. Qf2 {[%clk 0:00:04.5]} 28... Ng4 {[%clk 0:00:51.5]}
29. Qh4 {[%clk 0:00:03.1]} 29... f4 {[%clk 0:00:31.6]} 30. Bd3+ {[%clk
0:00:01.6]} 30... Kh6 {[%clk 0:00:31.6]} 0-1

[Event "*** SCC Grand Prix: Titled Tuesday Blitz"]
[Site "Chess.com"]
[Date "2020.07.14"]
[Round "4"]
[White "sergoy"]
[Black "Mikhal867"]
[Result "1-0"]
[WhiteElo "2810"]
[BlackElo "2402"]
[TimeControl "180+1"]
[EndTime "10:38:56 PDT"]
[Termination "sergoy won on time"]

1. d4 {[%clk 0:03:00.9]} 1... g6 {[%clk 0:02:55.8]} 2. e4 {[%clk 0:03:00.3]}
2... Bg7 {[%clk 0:02:55.3]} 3. Nc3 {[%clk 0:03:00.8]} 3... d6 {[%clk 0:02:55.2]}
4. Nf3 {[%clk 0:03:00.6]} 4... Nd7 {[%clk 0:02:54.5]} 5. Be3 {[%clk 0:02:58.3]}
5... a6 {[%clk 0:02:53.9]} 6. Qd2 {[%clk 0:02:58.1]} 6... b5 {[%clk 0:02:47.3]}
7. h4 {[%clk 0:02:57.6]} 7... h6 {[%clk 0:02:42.9]} 8. a4 {[%clk 0:02:53.7]}
8... b4 {[%clk 0:02:37.6]} 9. Nd5 {[%clk 0:02:53.8]} 9... Ngf6 {[%clk 0:02:30]}
10. Nxb4 {[%clk 0:02:30.8]} 10... Nxe4 {[%clk 0:02:25]} 11. Qd1 {[%clk
0:02:09.8]} 11... c5 {[%clk 0:02:16]} 12. dxc5 {[%clk 0:02:03.2]} 12... Ndxc5
{[%clk 0:02:15.3]} 13. c3 {[%clk 0:02:01.5]} 13... O-O {[%clk 0:02:05.6]} 14.
Be2 {[%clk 0:01:51.8]} 14... a5 {[%clk 0:01:54.9]} 15. Nd3 {[%clk 0:01:51.3]}
15... Nxd3+ {[%clk 0:01:48.9]} 16. Bxd3 {[%clk 0:01:50.8]} 16... Nc5 {[%clk
0:01:42.3]} 17. Bc2 {[%clk 0:01:49.7]} 17... Bg4 {[%clk 0:01:26.7]} 18. O-O
{[%clk 0:01:49.4]} 18... Rb8 {[%clk 0:01:25.8]} 19. Rb1 {[%clk 0:01:47.2]} 19...
e6 {[%clk 0:01:13.1]} 20. b4 {[%clk 0:01:41.8]} 20... Na6 {[%clk 0:00:59.1]} 21.
b5 {[%clk 0:01:24.7]} 21... Nc5 {[%clk 0:00:57.6]} 22. Bd4 {[%clk 0:01:25.2]}
22... Bxf3 {[%clk 0:00:50.2]} 23. Qxf3 {[%clk 0:01:20.2]} 23... Qxh4 {[%clk
0:00:49.1]} 24. Rfd1 {[%clk 0:00:50.1]} 24... Rfc8 {[%clk 0:00:47.8]} 25. Bxg7
{[%clk 0:00:46.5]} 25... Kxg7 {[%clk 0:00:46.9]} 26. Rxd6 {[%clk 0:00:47.1]}
26... Nxa4 {[%clk 0:00:33.9]} 27. Rd4 {[%clk 0:00:30.7]} 27... Qxd4 {[%clk
0:00:15.5]} 28. cxd4 {[%clk 0:00:31.6]} 28... Rxc2 {[%clk 0:00:15.2]} 29. Qb3
{[%clk 0:00:31.5]} 1-0

[Event "*** SCC Grand Prix: Titled Tuesday Blitz"]
[Site "Chess.com"]
[Date "2020.07.14"]
[Round "4"]
[White "ChainsOfFantasia"]
[Black "731291"]
[Result "0-1"]
[WhiteElo "2464"]
[BlackElo "2661"]
[TimeControl "180+1"]
[EndTime "10:38:56 PDT"]
[Termination "731291 won by resignation"]

1. c4 {[%clk 0:03:00.9]} 1... e5 {[%clk 0:02:58.8]} 2. g3 {[%clk 0:03:00.2]}
2... d6 {[%clk 0:02:57.7]} 3. Nc3 {[%clk 0:02:58.8]} 3... Be7 {[%clk 0:02:57.5]}
4. d4 {[%clk 0:02:57.4]} 4... exd4 {[%clk 0:02:57.3]} 5. Qxd4 {[%clk 0:02:58.1]}
5... Nc6 {[%clk 0:02:56.7]} 6. Qd2 {[%clk 0:02:57.8]} 6... a5 {[%clk 0:02:53.6]}
7. b3 {[%clk 0:02:55]} 7... a4 {[%clk 0:02:53.4]} 8. Nxa4 {[%clk 0:02:51.9]}
8... d5 {[%clk 0:02:53.4]} 9. Bb2 {[%clk 0:02:40.3]} 9... Nf6 {[%clk 0:02:33.9]}
10. cxd5 {[%clk 0:02:15.2]} 10... Rxa4 {[%clk 0:02:23.2]} 11. dxc6 {[%clk
0:02:05.6]} 11... Bb4 {[%clk 0:01:51.6]} 12. Bc3 {[%clk 0:02:04.7]} 12... Qxd2+
{[%clk 0:01:50]} 13. Bxd2 {[%clk 0:02:05.6]} 13... Bxd2+ {[%clk 0:01:49.9]} 14.
Kxd2 {[%clk 0:02:05.4]} 14... Rd4+ {[%clk 0:01:50.8]} 15. Kc3 {[%clk 0:02:00]}
15... Rd6 {[%clk 0:01:50.1]} 16. Bg2 {[%clk 0:01:46.4]} 16... bxc6 {[%clk
0:01:49.6]} 17. e4 {[%clk 0:01:35.9]} 17... Ng4 {[%clk 0:01:47.1]} 18. Nh3
{[%clk 0:01:32.7]} 18... Ke7 {[%clk 0:01:36.1]} 19. Rad1 {[%clk 0:01:07.2]}
19... Rhd8 {[%clk 0:01:33.5]} 20. Rxd6 {[%clk 0:01:03.5]} 20... Rxd6 {[%clk
0:01:27.5]} 21. a4 {[%clk 0:01:01.1]} 21... Ba6 {[%clk 0:01:23.7]} 22. b4 {[%clk
0:00:56]} 22... Rd3+ {[%clk 0:01:20]} 23. Kc2 {[%clk 0:00:50.3]} 23... Ra3
{[%clk 0:01:19.9]} 24. a5 {[%clk 0:00:49.3]} 24... c5 {[%clk 0:01:13.6]} 25.
bxc5 {[%clk 0:00:38.5]} 25... Rxa5 {[%clk 0:00:51.1]} 26. Kd2 {[%clk 0:00:28.8]}
26... Ra2+ {[%clk 0:00:44.1]} 27. Kc3 {[%clk 0:00:28]} 27... Nxf2 {[%clk
0:00:42.7]} 28. Nxf2 {[%clk 0:00:26.4]} 28... Rxf2 {[%clk 0:00:43.6]} 29. Bh3
{[%clk 0:00:26.7]} 29... Kf6 {[%clk 0:00:35.3]} 30. Kd4 {[%clk 0:00:25.4]} 30...
Rd2+ {[%clk 0:00:33.7]} 31. Kc3 {[%clk 0:00:20.8]} 31... Ra2 {[%clk 0:00:29.7]}
32. Bd7 {[%clk 0:00:17.1]} 32... Ke5 {[%clk 0:00:27.3]} 33. Rf1 {[%clk
0:00:15.3]} 33... Bxf1 {[%clk 0:00:26.5]} 0-1

[Event "*** SCC Grand Prix: Titled Tuesday Blitz"]
[Site "Chess.com"]
[Date "2020.07.14"]
[Round "4"]
[White "Gusarov91"]
[Black "Cocaino74"]
[Result "1-0"]
[WhiteElo "2631"]
[BlackElo "2333"]
[TimeControl "180+1"]
[EndTime "10:38:56 PDT"]
[Termination "Gusarov91 won by checkmate"]

1. d4 {[%clk 0:02:57.2]} 1... d5 {[%clk 0:02:59.1]} 2. Nf3 {[%clk 0:02:57.2]}
2... c5 {[%clk 0:02:58.4]} 3. c4 {[%clk 0:02:56.2]} 3... dxc4 {[%clk 0:02:59.2]}
4. e3 {[%clk 0:02:55.6]} 4... cxd4 {[%clk 0:02:41.7]} 5. Bxc4 {[%clk 0:02:47.1]}
5... Nc6 {[%clk 0:02:41.9]} 6. exd4 {[%clk 0:02:45.2]} 6... Nf6 {[%clk
0:02:33.1]} 7. d5 {[%clk 0:02:24.4]} 7... Na5 {[%clk 0:02:26.7]} 8. Qa4+ {[%clk
0:02:06.7]} 8... Bd7 {[%clk 0:02:23.1]} 9. Bb5 {[%clk 0:02:06.6]} 9... b6 {[%clk
0:01:53]} 10. Nc3 {[%clk 0:01:57.8]} 10... g6 {[%clk 0:01:51]} 11. Ne5 {[%clk
0:01:56.7]} 11... Bg7 {[%clk 0:01:32.5]} 12. Bg5 {[%clk 0:01:29.1]} 12... Bxb5
{[%clk 0:01:28]} 13. Qxb5+ {[%clk 0:01:26.4]} 13... Nd7 {[%clk 0:01:28.5]} 14.
Nc6 {[%clk 0:01:25.1]} 14... Qc7 {[%clk 0:01:16.1]} 15. O-O {[%clk 0:01:02.3]}
15... h6 {[%clk 0:01:04.9]} 16. Bxe7 {[%clk 0:00:55.1]} 16... Nxc6 {[%clk
0:00:59.7]} 17. dxc6 {[%clk 0:00:51.8]} 17... Ne5 {[%clk 0:00:59.9]} 18. Rfe1
{[%clk 0:00:34.3]} 18... a6 {[%clk 0:00:50.7]} 19. Nd5 {[%clk 0:00:28.5]} 19...
Qxe7 {[%clk 0:00:46.5]} 20. Qxb6 {[%clk 0:00:26.3]} 20... Qd6 {[%clk 0:00:28.7]}
21. Nc7+ {[%clk 0:00:26.1]} 21... Ke7 {[%clk 0:00:28.8]} 22. Nxa8 {[%clk
0:00:25.4]} 22... Rxa8 {[%clk 0:00:29.4]} 23. Qb7+ {[%clk 0:00:25.8]} 23... Ke6
{[%clk 0:00:27]} 24. Qxa8 {[%clk 0:00:26.1]} 24... Kf5 {[%clk 0:00:27]} 25. Rad1
{[%clk 0:00:25.7]} 25... Kg4 {[%clk 0:00:27.1]} 26. h3+ {[%clk 0:00:25.5]} 26...
Kf4 {[%clk 0:00:27.1]} 27. c7 {[%clk 0:00:25.6]} 27... Qb6 {[%clk 0:00:25.3]}
28. Qe4+ {[%clk 0:00:25.1]} 28... Kg5 {[%clk 0:00:25.3]} 29. c8=Q {[%clk
0:00:25.6]} 29... f5 {[%clk 0:00:24.4]} 30. Qxe5 {[%clk 0:00:24.1]} 30... Bxe5
{[%clk 0:00:24.5]} 31. Rxe5 {[%clk 0:00:24.3]} 31... Kf4 {[%clk 0:00:24.8]} 32.
Re3 {[%clk 0:00:23.4]} 32... Qxe3 {[%clk 0:00:24.2]} 33. fxe3+ {[%clk
0:00:23.3]} 33... Kg3 {[%clk 0:00:24.6]} 34. Qc7+ {[%clk 0:00:23.3]} 34... f4
{[%clk 0:00:25.1]} 35. Qxf4# {[%clk 0:00:23.5]} 1-0

[Event "*** SCC Grand Prix: Titled Tuesday Blitz"]
[Site "Chess.com"]
[Date "2020.07.14"]
[Round "4"]
[White "Djager97"]
[Black "Josip_buje"]
[Result "1-0"]
[WhiteElo "2447"]
[BlackElo "2284"]
[TimeControl "180+1"]
[EndTime "10:38:57 PDT"]
[Termination "Djager97 won by resignation"]

1. e4 {[%clk 0:03:00.9]} 1... Nf6 {[%clk 0:02:59.4]} 2. e5 {[%clk 0:02:59.9]}
2... Nd5 {[%clk 0:02:59.1]} 3. d4 {[%clk 0:03:00.8]} 3... d6 {[%clk 0:02:59.3]}
4. Nf3 {[%clk 0:03:01.1]} 4... Bg4 {[%clk 0:02:58.5]} 5. Be2 {[%clk 0:03:00.3]}
5... e6 {[%clk 0:02:58.6]} 6. c4 {[%clk 0:02:59.6]} 6... Nb6 {[%clk 0:02:58.2]}
7. h3 {[%clk 0:02:58.3]} 7... Bh5 {[%clk 0:02:57.7]} 8. Nc3 {[%clk 0:02:55.6]}
8... Be7 {[%clk 0:02:57.4]} 9. exd6 {[%clk 0:02:53.7]} 9... cxd6 {[%clk
0:02:58.3]} 10. a4 {[%clk 0:02:48.1]} 10... O-O {[%clk 0:02:53]} 11. a5 {[%clk
0:02:47.9]} 11... N6d7 {[%clk 0:02:53]} 12. Qb3 {[%clk 0:02:46.8]} 12... Qc8
{[%clk 0:02:47.2]} 13. O-O {[%clk 0:02:46.1]} 13... Nc6 {[%clk 0:02:45.8]} 14.
Be3 {[%clk 0:02:30.4]} 14... a6 {[%clk 0:02:40.7]} 15. Rfc1 {[%clk 0:02:27]}
15... Qc7 {[%clk 0:02:26.8]} 16. d5 {[%clk 0:02:26.8]} 16... Bxf3 {[%clk
0:02:19.9]} 17. Bxf3 {[%clk 0:02:26.7]} 17... Nce5 {[%clk 0:02:20.3]} 18. Be2
{[%clk 0:02:24.1]} 18... Ng6 {[%clk 0:02:05.6]} 19. dxe6 {[%clk 0:02:18.3]}
19... fxe6 {[%clk 0:02:05.4]} 20. c5 {[%clk 0:02:18.8]} 20... Nxc5 {[%clk
0:02:03.7]} 21. Bxc5 {[%clk 0:02:18.4]} 21... dxc5 {[%clk 0:02:03.8]} 22. Qxe6+
{[%clk 0:02:17.4]} 22... Kh8 {[%clk 0:02:04.2]} 23. Nd5 {[%clk 0:02:13.5]} 23...
Qd6 {[%clk 0:02:02.4]} 24. Qxd6 {[%clk 0:01:54.1]} 24... Bxd6 {[%clk 0:02:03.3]}
25. Nb6 {[%clk 0:01:38.4]} 25... Rad8 {[%clk 0:01:50.5]} 26. Nc4 {[%clk
0:01:38.6]} 26... Bf4 {[%clk 0:01:41.4]} 27. Rd1 {[%clk 0:01:36]} 27... Ne5
{[%clk 0:01:40.4]} 28. Nd6 {[%clk 0:01:16.6]} 28... Nc6 {[%clk 0:00:59.9]} 29.
Nxb7 {[%clk 0:01:08.7]} 29... Rb8 {[%clk 0:00:57.5]} 30. Nxc5 {[%clk 0:01:00.5]}
30... Rxb2 {[%clk 0:00:57.7]} 31. Bf3 {[%clk 0:00:57.8]} 31... Ne5 {[%clk
0:00:54.5]} 32. Nxa6 {[%clk 0:00:54.6]} 32... Nxf3+ {[%clk 0:00:52]} 33. gxf3
{[%clk 0:00:55.5]} 33... h6 {[%clk 0:00:48.6]} 34. Nc5 {[%clk 0:00:54.5]} 34...
Rc8 {[%clk 0:00:39.6]} 35. a6 {[%clk 0:00:41.6]} 35... Rbb8 {[%clk 0:00:34.5]}
36. Nd7 {[%clk 0:00:26.6]} 1-0

[Event "*** SCC Grand Prix: Titled Tuesday Blitz"]
[Site "Chess.com"]
[Date "2020.07.14"]
[Round "4"]
[White "DaggiGretarsson"]
[Black "2900tactinhos"]
[Result "0-1"]
[WhiteElo "2591"]
[BlackElo "2427"]
[TimeControl "180+1"]
[EndTime "10:38:58 PDT"]
[Termination "2900tactinhos won by checkmate"]

1. d4 {[%clk 0:03:00]} 1... Nf6 {[%clk 0:02:58.6]} 2. c4 {[%clk 0:02:59.5]} 2...
e6 {[%clk 0:02:57]} 3. Nc3 {[%clk 0:02:58.8]} 3... Bb4 {[%clk 0:02:56.7]} 4. Qc2
{[%clk 0:02:58.9]} 4... O-O {[%clk 0:02:55.5]} 5. e4 {[%clk 0:02:58.1]} 5...
Bxc3+ {[%clk 0:02:52]} 6. bxc3 {[%clk 0:02:57.1]} 6... d6 {[%clk 0:02:52.2]} 7.
Bd3 {[%clk 0:02:54.8]} 7... e5 {[%clk 0:02:52.1]} 8. Ne2 {[%clk 0:02:54.4]} 8...
c5 {[%clk 0:02:52.2]} 9. O-O {[%clk 0:02:48.3]} 9... Nc6 {[%clk 0:02:51.6]} 10.
f4 {[%clk 0:02:28.8]} 10... exd4 {[%clk 0:02:49.1]} 11. cxd4 {[%clk 0:02:28.3]}
11... Nb4 {[%clk 0:02:49.3]} 12. Qd2 {[%clk 0:02:27]} 12... Nxd3 {[%clk
0:02:42.5]} 13. Qxd3 {[%clk 0:02:26.7]} 13... Re8 {[%clk 0:02:42.3]} 14. dxc5
{[%clk 0:02:09.6]} 14... Nxe4 {[%clk 0:02:40.6]} 15. cxd6 {[%clk 0:02:06.5]}
15... Qxd6 {[%clk 0:02:37.9]} 16. Nd4 {[%clk 0:01:58.8]} 16... Nc5 {[%clk
0:02:15.6]} 17. Qc3 {[%clk 0:01:55.8]} 17... Ne4 {[%clk 0:02:14.3]} 18. Qb2
{[%clk 0:01:51.5]} 18... Qb6 {[%clk 0:02:04.7]} 19. Qxb6 {[%clk 0:01:41.9]}
19... axb6 {[%clk 0:02:04.8]} 20. Nb5 {[%clk 0:01:38.2]} 20... Rd8 {[%clk
0:02:01.2]} 21. Be3 {[%clk 0:01:36.4]} 21... Nc5 {[%clk 0:01:50]} 22. Nc7 {[%clk
0:01:14.7]} 22... Ra3 {[%clk 0:01:46.7]} 23. Rfd1 {[%clk 0:01:09]} 23... Rf8
{[%clk 0:01:18.3]} 24. Nd5 {[%clk 0:00:58.5]} 24... Be6 {[%clk 0:01:14.3]} 25.
Bf2 {[%clk 0:00:54.7]} 25... Bxd5 {[%clk 0:01:04.8]} 26. cxd5 {[%clk 0:00:54.4]}
26... Rd8 {[%clk 0:01:00.7]} 27. Rab1 {[%clk 0:00:51.5]} 27... Rxa2 {[%clk
0:00:56.5]} 28. Rxb6 {[%clk 0:00:50.8]} 28... Ne4 {[%clk 0:00:56.5]} 29. Bh4
{[%clk 0:00:47.9]} 29... Rxd5 {[%clk 0:00:47]} 30. Re1 {[%clk 0:00:47.6]} 30...
f5 {[%clk 0:00:43.9]} 31. g4 {[%clk 0:00:38]} 31... Rdd2 {[%clk 0:00:42.4]} 32.
Bg3 {[%clk 0:00:36]} 32... Rg2+ {[%clk 0:00:33.5]} 33. Kf1 {[%clk 0:00:30]}
33... Nxg3+ {[%clk 0:00:31.1]} 34. hxg3 {[%clk 0:00:29.9]} 34... Raf2# {[%clk
0:00:31.2]} 0-1

[Event "*** SCC Grand Prix: Titled Tuesday Blitz"]
[Site "Chess.com"]
[Date "2020.07.14"]
[Round "4"]
[White "FedaMaster"]
[Black "GjakanTati"]
[Result "1-0"]
[WhiteElo "2370"]
[BlackElo "2571"]
[TimeControl "180+1"]
[EndTime "10:39:01 PDT"]
[Termination "FedaMaster won by resignation"]

1. e4 {[%clk 0:03:00.9]} 1... e5 {[%clk 0:02:59.9]} 2. Nf3 {[%clk 0:03:00.3]}
2... Nc6 {[%clk 0:03:00.4]} 3. Bb5 {[%clk 0:03:00.8]} 3... Nf6 {[%clk
0:03:00.3]} 4. Bxc6 {[%clk 0:03:00.4]} 4... dxc6 {[%clk 0:03:00.1]} 5. Nc3
{[%clk 0:03:00.9]} 5... Bd6 {[%clk 0:02:59.5]} 6. d4 {[%clk 0:03:01.4]} 6...
exd4 {[%clk 0:02:52.9]} 7. Qxd4 {[%clk 0:03:02.3]} 7... Be7 {[%clk 0:02:47.8]}
8. Qxd8+ {[%clk 0:02:54]} 8... Bxd8 {[%clk 0:02:48]} 9. Bg5 {[%clk 0:02:52.5]}
9... h6 {[%clk 0:02:46.4]} 10. Bh4 {[%clk 0:02:49.1]} 10... O-O {[%clk
0:02:42.9]} 11. O-O-O {[%clk 0:02:45.4]} 11... Bg4 {[%clk 0:02:34.7]} 12. Rd3
{[%clk 0:02:43.1]} 12... Nd7 {[%clk 0:01:47.3]} 13. Bxd8 {[%clk 0:02:35]} 13...
Raxd8 {[%clk 0:01:48.2]} 14. Rhd1 {[%clk 0:02:35]} 14... c5 {[%clk 0:01:39.1]}
15. Nd5 {[%clk 0:02:27.2]} 15... Kh7 {[%clk 0:01:34.1]} 16. Nxc7 {[%clk
0:02:21.4]} 16... c4 {[%clk 0:01:31.4]} 17. Rd4 {[%clk 0:02:17.4]} 17... c3
{[%clk 0:01:04.8]} 18. bxc3 {[%clk 0:02:13.4]} 18... f6 {[%clk 0:00:50.2]} 19.
h3 {[%clk 0:02:08.3]} 19... Bxf3 {[%clk 0:00:50.2]} 20. gxf3 {[%clk 0:02:07.5]}
20... Rf7 {[%clk 0:00:50.8]} 21. Nb5 {[%clk 0:02:02.5]} 21... a6 {[%clk
0:00:42.4]} 22. Nd6 {[%clk 0:02:02.5]} 22... Re7 {[%clk 0:00:42.8]} 23. Nxb7
{[%clk 0:02:02.3]} 23... Rb8 {[%clk 0:00:42.7]} 24. Rxd7 {[%clk 0:02:02.1]}
24... Rxb7 {[%clk 0:00:43.1]} 25. Rxe7 {[%clk 0:01:54.5]} 25... Rxe7 {[%clk
0:00:44]} 26. c4 {[%clk 0:01:52.9]} 26... Rc7 {[%clk 0:00:41.8]} 27. Rd4 {[%clk
0:01:51.8]} 27... Kg6 {[%clk 0:00:41.8]} 28. Kd2 {[%clk 0:01:36.7]} 28... Kg5
{[%clk 0:00:40.8]} 29. Ke3 {[%clk 0:01:33.6]} 29... Kh4 {[%clk 0:00:40.1]} 30.
f4 {[%clk 0:01:32.1]} 30... Kxh3 {[%clk 0:00:39.9]} 31. e5 {[%clk 0:01:32.3]}
31... f5 {[%clk 0:00:26.4]} 32. Kf3 {[%clk 0:01:08.2]} 32... h5 {[%clk
0:00:25.6]} 33. e6 {[%clk 0:01:08]} 33... Re7 {[%clk 0:00:23.2]} 34. Rd1 {[%clk
0:01:08.3]} 34... Kh2 {[%clk 0:00:22]} 35. Re1 {[%clk 0:01:06.7]} 35... h4
{[%clk 0:00:18.6]} 36. c5 {[%clk 0:01:07.2]} 36... h3 {[%clk 0:00:16.8]} 37. c6
{[%clk 0:01:07.6]} 37... g6 {[%clk 0:00:14]} 38. c7 {[%clk 0:01:07.2]} 38...
Rxc7 {[%clk 0:00:14.1]} 39. e7 {[%clk 0:01:08.1]} 39... Rc3+ {[%clk 0:00:14.1]}
40. Re3 {[%clk 0:01:06.6]} 40... Rxe3+ {[%clk 0:00:11.8]} 41. fxe3 {[%clk
0:00:59.3]} 41... Kg1 {[%clk 0:00:05.3]} 42. e8=Q {[%clk 0:01:00.2]} 42... h2
{[%clk 0:00:05.5]} 43. Qh8 {[%clk 0:01:00.3]} 43... h1=Q+ {[%clk 0:00:04.9]} 44.
Qxh1+ {[%clk 0:01:00.8]} 44... Kxh1 {[%clk 0:00:05.8]} 45. c4 {[%clk 0:01:01.4]}
45... Kg1 {[%clk 0:00:05.3]} 46. c5 {[%clk 0:01:02]} 46... Kf1 {[%clk
0:00:06.2]} 47. c6 {[%clk 0:01:02.9]} 47... Ke1 {[%clk 0:00:06.8]} 48. c7 {[%clk
0:01:03.4]} 1-0

[Event "*** SCC Grand Prix: Titled Tuesday Blitz"]
[Site "Chess.com"]
[Date "2020.07.14"]
[Round "4"]
[White "2008king"]
[Black "QueenOfTactics90"]
[Result "1-0"]
[WhiteElo "2239"]
[BlackElo "2001"]
[TimeControl "180+1"]
[EndTime "10:39:02 PDT"]
[Termination "2008king won by resignation"]

1. e4 {[%clk 0:03:00.9]} 1... c5 {[%clk 0:02:59]} 2. Nf3 {[%clk 0:02:58.4]} 2...
Nc6 {[%clk 0:02:59]} 3. d4 {[%clk 0:02:58.8]} 3... cxd4 {[%clk 0:02:59.4]} 4.
Nxd4 {[%clk 0:02:59.7]} 4... g6 {[%clk 0:02:59.8]} 5. Nc3 {[%clk 0:02:58.5]}
5... Bg7 {[%clk 0:03:00.3]} 6. Be3 {[%clk 0:02:59.3]} 6... Nf6 {[%clk
0:03:00.5]} 7. Bc4 {[%clk 0:02:59.5]} 7... O-O {[%clk 0:03:00.8]} 8. Bb3 {[%clk
0:02:58.9]} 8... a5 {[%clk 0:02:51.5]} 9. a4 {[%clk 0:02:58]} 9... d5 {[%clk
0:02:29.1]} 10. exd5 {[%clk 0:02:54.6]} 10... Nb4 {[%clk 0:02:28.6]} 11. Ndb5
{[%clk 0:02:49.8]} 11... Bf5 {[%clk 0:01:58.4]} 12. O-O {[%clk 0:02:45.3]} 12...
Ng4 {[%clk 0:01:50]} 13. Bd4 {[%clk 0:02:41.3]} 13... Rc8 {[%clk 0:01:29.9]} 14.
Bxg7 {[%clk 0:02:35.4]} 14... Kxg7 {[%clk 0:01:30.8]} 15. Qd4+ {[%clk
0:02:34.3]} 15... f6 {[%clk 0:01:23.5]} 16. h3 {[%clk 0:02:23.8]} 16... Ne5
{[%clk 0:01:17.9]} 17. f4 {[%clk 0:02:20]} 17... Nf7 {[%clk 0:01:11.1]} 18. Rac1
{[%clk 0:02:16.9]} 18... Nd6 {[%clk 0:00:58.4]} 19. Nxd6 {[%clk 0:02:11.7]}
19... Qxd6 {[%clk 0:00:57.6]} 20. Rfe1 {[%clk 0:02:09.5]} 20... Rfe8 {[%clk
0:00:44.8]} 21. Nb5 {[%clk 0:02:02.4]} 21... Qc5 {[%clk 0:00:32.1]} 22. Qxc5
{[%clk 0:02:00.3]} 22... Rxc5 {[%clk 0:00:31.9]} 23. d6 {[%clk 0:01:56.9]} 23...
e5 {[%clk 0:00:27.7]} 24. fxe5 {[%clk 0:01:50]} 24... Rcxe5 {[%clk 0:00:27.4]}
25. Rxe5 {[%clk 0:01:49.2]} 25... Rxe5 {[%clk 0:00:27.6]} 26. c3 {[%clk
0:01:47.6]} 26... Nd3 {[%clk 0:00:24]} 27. Rd1 {[%clk 0:01:47.2]} 27... Nc5
{[%clk 0:00:24]} 28. Bc4 {[%clk 0:01:37.5]} 28... Bd7 {[%clk 0:00:20.5]} 29. b3
{[%clk 0:01:22.5]} 29... Ne4 {[%clk 0:00:18.9]} 30. Rd5 {[%clk 0:01:11.7]} 30...
Rxd5 {[%clk 0:00:17.6]} 31. Bxd5 {[%clk 0:01:12.6]} 31... Bxb5 {[%clk
0:00:16.3]} 32. Bxe4 {[%clk 0:01:09.5]} 32... Bd7 {[%clk 0:00:14.9]} 33. Bxb7
{[%clk 0:01:09.4]} 33... Kf7 {[%clk 0:00:15.2]} 34. c4 {[%clk 0:01:09.8]} 34...
Ke6 {[%clk 0:00:15.2]} 35. c5 {[%clk 0:01:10.2]} 35... Be8 {[%clk 0:00:12.2]}
36. Bf3 {[%clk 0:01:06]} 36... Kd7 {[%clk 0:00:11.6]} 37. Be2 {[%clk 0:01:05]}
37... Bf7 {[%clk 0:00:11.7]} 38. Bb5+ {[%clk 0:01:04.6]} 38... Kd8 {[%clk
0:00:11]} 39. Bc4 {[%clk 0:01:04.6]} 39... Be8 {[%clk 0:00:10.9]} 40. Kf1 {[%clk
0:01:03.9]} 40... Bc6 {[%clk 0:00:10.8]} 41. g4 {[%clk 0:01:02.9]} 41... Kc8
{[%clk 0:00:10.9]} 42. Ke2 {[%clk 0:01:02.4]} 42... f5 {[%clk 0:00:10.7]} 43.
gxf5 {[%clk 0:01:02.2]} 43... gxf5 {[%clk 0:00:11.6]} 44. Ke3 {[%clk 0:01:02.8]}
44... h6 {[%clk 0:00:10.8]} 45. Kf4 {[%clk 0:01:02.6]} 45... Be4 {[%clk
0:00:11.1]} 46. Be6+ {[%clk 0:01:02.6]} 46... Kb7 {[%clk 0:00:10.5]} 47. Bxf5
{[%clk 0:01:03.5]} 47... Bd5 {[%clk 0:00:09.7]} 48. Be4 {[%clk 0:01:03.6]} 48...
Bxe4 {[%clk 0:00:09.7]} 49. Kxe4 {[%clk 0:01:04.5]} 49... Kc6 {[%clk 0:00:10.6]}
50. Ke5 {[%clk 0:01:04.8]} 1-0